fUST/lending_fUST_20260519
["ID","MTS","AMOUNT","RATE_DAILY","PERIOD"]
[422596575,1779136240000,-1587.072135,0.00013699,2]
[422596576,1779136240000,-169.85916221,0.00013699,7]
[422596577,1779136240000,-679.43664886,0.00013699,7]
[422596573,1779136240000,-391.06077,0.00013699,2]
[422596571,1779136240000,-185.0,0.00013653,2]
[422596567,1779136240000,-151.0,0.00013142,2]
[422596569,1779136240000,-152.0,0.00013296,7]
[422596568,1779136240000,-223.0,0.00013151,3]
[422596570,1779136240000,-231.78242609,0.00013365,14]
[422596572,1779136240000,-180.01980218,0.00013699,2]
[422596565,1779136240000,-644.79446246,0.00012352,2]
[422596566,1779136240000,-668.65185757,0.00012407,2]
[422596563,1779136240000,-621.78829552,0.00012297,2]
[422596551,1779136240000,-443.0,0.00010653,2]
[422596561,1779136240000,-578.20924308,0.00012187,2]
[422596559,1779136240000,-537.6845,0.00012077,2]
[422596554,1779136240000,-242.0,0.00010959,3]
[422596557,1779136240000,-418.32917109,0.00011863,2]
[422596560,1779136240000,-557.5788265,0.00012132,2]
[422596562,1779136240000,-599.60298507,0.00012242,2]
[422596558,1779136240000,-221.0,0.00012055,3]
[422596555,1779136240000,-3361.3400518,0.00011639,2]
[422596552,1779136240000,-194.992,0.00010653,2]
[422596553,1779136240000,-161.68513202,0.00010881,2]
[422596549,1779136240000,-406.88547979,0.00010653,2]
[422596550,1779136240000,-1006.11452021,0.00010653,2]
[422596548,1779136240000,-361.83607696,0.00010653,2]
[422596574,1779136240000,-1000.0,0.00013699,2]
[422596556,1779136240000,-420.0,0.0001171,2]
[422596579,1779136240000,-339.71832443,0.00013699,7]
[422596588,1779136240000,-200.0,0.00013776,2]
[422596589,1779136240000,-5000.0,0.00013797,15]
[422596607,1779136240000,-500.0,0.00013798,2]
[422596608,1779136240000,-500.0,0.00013798,2]
[422596611,1779136240000,-500.0,0.00013798,2]
[422596610,1779136240000,-500.0,0.00013798,2]
[422596605,1779136240000,-500.0,0.00013798,2]
[422596609,1779136240000,-500.0,0.00013798,2]
[422596606,1779136240000,-200.0864313,0.00013798,2]
[422596601,1779136240000,-500.0,0.00013798,2]
[422596598,1779136240000,-358.03778391,0.00013798,2]
[422596596,1779136240000,-153.78716853,0.00013798,2]
[422596600,1779136240000,-500.0,0.00013798,2]
[422596590,1779136240000,-500.0,0.00013798,2]
[422596599,1779136240000,-500.0,0.00013798,2]
[422596597,1779136240000,-500.0,0.00013798,2]
[422596594,1779136240000,-500.0,0.00013798,2]
[422596591,1779136240000,-500.0,0.00013798,2]
[422596593,1779136240000,-500.0,0.00013798,2]
[422596580,1779136240000,-188.33460406,0.00013699,2]
[422596582,1779136240000,-565.00381219,0.00013699,2]
[422596595,1779136240000,-500.0,0.00013798,2]
[422596578,1779136240000,-509.57748664,0.00013699,7]
[422596581,1779136240000,-376.66920813,0.00013699,2]
[422596585,1779136240000,-200.0,0.00013719,2]
[422596587,1779136240000,-200.0,0.00013776,2]
[422596583,1779136240000,-1000.0,0.00013699,2]
[422596586,1779136240000,-1563.88342794,0.0001372,2]
[422596592,1779136240000,-500.0,0.00013798,2]
[422596603,1779136240000,-500.0,0.00013798,2]
[422596602,1779136240000,-500.0,0.00013798,2]
[422596604,1779136240000,-500.0,0.00013798,2]
[422596584,1779136240000,-163.571,0.00013699,2]
[422596619,1779136241000,-500.0,0.00013798,2]
[422596616,1779136241000,-500.0,0.00013798,2]
[422596618,1779136241000,-500.0,0.00013798,2]
[422596617,1779136241000,-500.0,0.00013798,2]
[422596614,1779136241000,-500.0,0.00013798,2]
[422596615,1779136241000,-539.63185876,0.00013798,2]
[422596612,1779136241000,-500.0,0.00013798,2]
[422596613,1779136241000,-500.0,0.00013798,2]
[422596620,1779136241000,-500.0,0.00013798,2]
[422596621,1779136241000,-500.0,0.00013798,2]
[422596661,1779136241000,-3278.85912051,0.00013799,2]
[422596622,1779136241000,-500.0,0.00013798,2]
[422596623,1779136241000,-500.0,0.00013798,2]
[422596624,1779136241000,-574.90677555,0.00013798,2]
[422596629,1779136241000,-17529.43457924,0.00013799,2]
[422596626,1779136241000,-500.0,0.00013798,2]
[422596627,1779136241000,-300.0,0.00013798,2]
[422596648,1779136241000,-487.84187099,0.00013799,2]
[422596638,1779136241000,-1285.10008273,0.00013799,2]
[422596641,1779136241000,-6964.80197254,0.00013799,2]
[422596643,1779136241000,-5322.07954391,0.00013799,2]
[422596625,1779136241000,-500.0,0.00013798,2]
[422596896,1779136243000,-1042.58895196,0.0001372,2]
[422596903,1779136243000,-163.0764904,0.00013799,2]
[422596926,1779136243000,-19329.86568377,0.00013799,2]
[422596898,1779136243000,-379.14525136,0.00013799,2]
[422597353,1779136246000,-30216.5169904,0.00013799,2]
[422597351,1779136246000,-561.97069569,0.00013799,2]
[422597349,1779136246000,-695.05930131,0.0001372,2]
[422598186,1779137432000,-189.0,0.00012603,3]
[422598198,1779137432000,-151.0,0.00013213,2]
[422598197,1779137432000,-151.2716887,0.00013213,2]
[422598201,1779137432000,-289.2459599,0.00013213,2]
[422598194,1779137432000,-537.6845,0.00013204,2]
[422598191,1779137432000,-921.45687972,0.00013113,2]
[422598184,1779137432000,-329.75729643,0.00012352,2]
[422598189,1779137432000,-249.632,0.000131,2]
[422598187,1779137432000,-299.29351297,0.00012961,2]
[422598182,1779137432000,-1011.08596153,0.00012006,4]
[422598171,1779137432000,-647.0,0.00011211,2]
[422598181,1779137432000,-197.99,0.00012006,2]
[422598179,1779137432000,-30814.23814473,0.00012004,2]
[422598169,1779137432000,-2202.0,0.00011211,2]
[422598177,1779137432000,-198.0,0.00012004,2]
[422598174,1779137432000,-301.0,0.00011507,3]
[422598176,1779137432000,-170.313102,0.0001188,2]
[422598172,1779137432000,-1413.0,0.00011211,2]
[422598165,1779137432000,-253.63857032,0.00010961,2]
[422598164,1779137432000,-5000.0,0.00010635,2]
[422598167,1779137432000,-300.0,0.0001121,2]
[422598207,1779137432000,-557.5788265,0.00013259,2]
[422598204,1779137432000,-151.0,0.00013213,2]
[422598211,1779137432000,-599.60298507,0.00013369,2]
[422598241,1779137432000,-440.41335325,0.00013597,2]
[422598210,1779137432000,-578.20924308,0.00013314,2]
[422598242,1779137432000,-4296.67818282,0.00013597,2]
[422598246,1779137432000,-2994.07694886,0.00013597,2]
[422598234,1779137432000,-5369.94332153,0.00013597,2]
[422598244,1779137432000,-29376.97641099,0.00013597,2]
[422598240,1779137432000,-2347.97246076,0.00013597,2]
[422598236,1779137432000,-6329.51878425,0.00013597,2]
[422598233,1779137432000,-20435.74015589,0.00013597,2]
[422598231,1779137432000,-500.0,0.00013596,2]
[422598238,1779137432000,-476.04006851,0.00013597,2]
[422598215,1779137432000,-161.68513202,0.00013494,2]
[422598220,1779137432000,-317.9876513,0.00013573,2]
[422598228,1779137432000,-444.76004512,0.00013596,2]
[422598222,1779137432000,-1071.3326698,0.00013573,2]
[422598226,1779137432000,-226.62576208,0.00013596,2]
[422598213,1779137432000,-621.78829552,0.00013424,2]
[422598225,1779137432000,-5000.0,0.00013595,15]
[422598223,1779137432000,-12872.9406126,0.00013573,2]
[422598218,1779137432000,-1499.75362931,0.00013573,2]
[422598217,1779137432000,-3504.64356289,0.00013573,2]
[422598229,1779137432000,-500.0,0.00013596,2]
[422598667,1779137441000,-6635.39771044,0.00013597,2]
[422598692,1779137441000,-151.0,0.00013799,2]
[422598700,1779137441000,-151.0,0.00013799,2]
[422598689,1779137441000,-592.33014919,0.0001372,2]
[422598673,1779137441000,-793.536068,0.00013699,2]
[422598687,1779137441000,-1000.0,0.00013699,2]
[422598669,1779137441000,-180.0180018,0.00013699,2]
[422598671,1779137441000,-1000.0,0.00013699,2]
[422598677,1779137441000,-191.0,0.00013699,3]
[422598679,1779137441000,-167.50000718,0.00013699,7]
[422598685,1779137441000,-670.00002874,0.00013699,7]
[422598681,1779137441000,-335.00001437,0.00013699,7]
[422598675,1779137441000,-195.530385,0.00013699,2]
[422598642,1779137441000,-1420.26364872,0.00013597,2]
[422598645,1779137441000,-2747.83798997,0.00013597,2]
[422598647,1779137441000,-34824.97337931,0.00013597,2]
[422598696,1779137441000,-151.0,0.00013799,2]
[422598683,1779137441000,-502.50002155,0.00013699,7]
[422598707,1779137441000,-570.49645027,0.00013853,2]
[422598735,1779137441000,-260715.24157959,0.00014,5]
[422598691,1779137441000,-1015.50031277,0.00013799,2]
[422598741,1779137441000,-1384.63565682,0.00014,2]
[422598738,1779137441000,-103747.65423803,0.00014,2]
[422598733,1779137441000,-250.0,0.00013999,2]
[422598731,1779137441000,-500.0,0.00013999,2]
[422598729,1779137441000,-500.0,0.00013999,2]
[422598724,1779137441000,-500.0,0.00013999,2]
[422598727,1779137441000,-500.0,0.00013999,2]
[422598702,1779137441000,-295.10319554,0.00013799,2]
[422598714,1779137441000,-395.56910988,0.00013999,2]
[422598716,1779137441000,-500.0,0.00013999,2]
[422598722,1779137441000,-500.0,0.00013999,2]
[422598718,1779137441000,-500.0,0.00013999,2]
[422598712,1779137441000,-500.0,0.00013999,2]
[422598711,1779137441000,-837.50003592,0.00013982,7]
[422598708,1779137441000,-3087.0467569,0.00013853,2]
[422598694,1779137441000,-151.0,0.00013799,2]
[422598705,1779137441000,-286.68722904,0.00013839,2]
[422598699,1779137441000,-151.0,0.00013799,2]
[422598720,1779137441000,-500.0,0.00013999,2]
[422599040,1779137443000,-394.88676612,0.0001372,2]
[422599042,1779137443000,-249.11323388,0.00013859,2]
[422599396,1779137446000,-263.25784408,0.0001372,2]
[422599430,1779137446000,-1224.26123983,0.00013859,2]
[422599432,1779137446000,-997.97076017,0.00014,2]
[422599398,1779137446000,-2026.62552629,0.00013859,2]
[422600387,1779138339000,5506.20965088,0.000178,120]
[422600648,1779138639000,-366.99704393,0.00012049,2]
[422600662,1779138639000,-1008.16920432,0.00013,2]
[422600664,1779138639000,-157.0,0.00013151,3]
[422600666,1779138639000,-151.0,0.000132,2]
[422600668,1779138639000,-5000.0,0.00013294,15]
[422600670,1779138639000,-500.0,0.00013295,2]
[422600672,1779138639000,-500.0,0.00013295,2]
[422600658,1779138639000,-285.7176123,0.00012392,2]
[422600640,1779138639000,-232.94754479,0.00011795,2]
[422600660,1779138639000,-269.8010833,0.00012392,2]
[422600653,1779138639000,-156.0,0.00012055,3]
[422600676,1779138639000,-500.0,0.00013295,2]
[422600678,1779138639000,-500.0,0.00013295,2]
[422600680,1779138639000,-500.0,0.00013295,2]
[422600683,1779138639000,-326.48585736,0.00013295,2]
[422600674,1779138639000,-500.0,0.00013295,2]
[422600645,1779138639000,-21.76719996,0.00012049,2]
[422600612,1779138639000,-151.0,6.483e-05,2]
[422600633,1779138639000,-1413.0,0.00011232,2]
[422600609,1779138639000,-151.0,6.418e-05,2]
[422600601,1779138639000,-1947.02828019,5.943e-05,2]
[422600611,1779138639000,-151.0,6.418e-05,2]
[422600603,1779138639000,-3052.97171981,5.943e-05,2]
[422600605,1779138639000,-252.44431422,6.049e-05,2]
[422600616,1779138639000,-151.0,9.305e-05,2]
[422600689,1779138639000,-151.0,0.00013298,2]
[422600607,1779138639000,-161.8187031,6.126e-05,2]
[422600614,1779138639000,-297.88429078,8.049e-05,2]
[422600618,1779138639000,-343.32426734,0.00010049,2]
[422600620,1779138639000,-1200.0,0.00010867,2]
[422600625,1779138639000,-161.68513202,0.00011057,2]
[422600623,1779138639000,-175.0,0.00010959,3]
[422600627,1779138639000,-300.0,0.0001123,2]
[422600631,1779138639000,-2202.0,0.00011232,2]
[422600629,1779138639000,-300.0,0.00011231,2]
[422600622,1779138639000,-335.18841032,0.0001087,2]
[422600635,1779138639000,-647.0,0.00011232,2]
[422600691,1779138639000,-456.3497628,0.00013298,2]
[422600656,1779138639000,-420.0,0.00012338,2]
[422600693,1779138639000,-151.0,0.000133,2]
[422600730,1779138639000,-173.4821503,0.00013699,7]
[422600741,1779138639000,-160.84213938,0.0001375,2]
[422600743,1779138639000,-151.0,0.000138,2]
[422600736,1779138639000,-1000.0,0.00013699,2]
[422600739,1779138639000,-406.54371258,0.0001372,2]
[422600745,1779138639000,-151.0,0.000138,2]
[422600749,1779138639000,-953.962954,0.00013898,2]
[422600737,1779138639000,-151.0,0.000137,2]
[422600747,1779138639000,-6476.0074358,0.00013898,2]
[422600751,1779138639000,-842.5082452,0.00013898,2]
[422600755,1779138639000,-151.0,0.000139,2]
[422600753,1779138639000,-1365.786212,0.00013898,2]
[422600763,1779138639000,-193.0362897,0.00013959,2]
[422600761,1779138639000,-151.0,0.00013959,2]
[422600759,1779138639000,-2084.23035834,0.000139,2]
[422600757,1779138639000,-160.84213938,0.000139,2]
[422600686,1779138639000,-500.0,0.00013295,2]
[422600732,1779138639000,-520.44645089,0.00013699,7]
[422600728,1779138639000,-346.9643006,0.00013699,7]
[422600734,1779138639000,-693.92860119,0.00013699,7]
[422600726,1779138639000,-1000.0,0.00013699,2]
[422600682,1779138639000,-500.0,0.00013295,2]
[422600695,1779138639000,-696.12016872,0.000133,2]
[422600687,1779138639000,-895781.40511539,0.00013296,2]
[422600697,1779138639000,-1535.70108578,0.000133,2]
[422600699,1779138639000,-1711.60778557,0.000133,2]
[422600701,1779138639000,-1793.74845628,0.000133,2]
[422600715,1779138639000,-160.84213938,0.0001345,2]
[422600703,1779138639000,-160.84213941,0.000133,2]
[422600717,1779138639000,-151.0,0.000135,2]
[422600705,1779138639000,-325.9226287,0.00013301,2]
[422600720,1779138639000,-160.84213938,0.000136,2]
[422600719,1779138639000,-151.0,0.000136,2]
[422600724,1779138639000,-396.768034,0.00013699,2]
[422600722,1779138639000,-180.02160259,0.00013699,2]
[422600711,1779138639000,-151.0,0.000134,2]
[422600713,1779138639000,-151.0,0.000134,2]
[422600709,1779138639000,-151.0,0.000134,2]
[422600707,1779138639000,-306.388,0.00013354,2]
[422600770,1779138640000,-537.6845,0.00013999,5]
[422600781,1779138640000,-668.65185757,0.00013999,5]
[422600777,1779138640000,-621.78829552,0.00013999,5]
[422600768,1779138640000,-325.9363659,0.0001399,2]
[422600775,1779138640000,-599.60298507,0.00013999,5]
[422600774,1779138640000,-578.20924308,0.00013999,5]
[422600765,1779138640000,-867.41075149,0.00013983,7]
[422600884,1779138640000,-11480.38179865,0.00014,2]
[422600772,1779138640000,-557.5788265,0.00013999,5]
[422600783,1779138640000,-112515.01760523,0.00014,2]
[422600786,1779138640000,-12913.79060295,0.00014,2]
[422600789,1779138640000,-101790.21773394,0.00014,2]
[422600885,1779138640000,-4639.7776495,0.00014,2]
[422600886,1779138640000,-43147.616,0.00014,2]
[422600779,1779138640000,-644.79446246,0.00013999,5]
[422600889,1779138646000,-271.02914172,0.0001372,2]
[422600891,1779138646000,-108804.6305915,0.00014,2]
[422600890,1779138646000,-20851.44371711,0.00014,2]
[422600892,1779138647000,-2710.74463459,0.00014,2]
[422600931,1779139833000,-412.82515885,9.8e-05,2]
[422600930,1779139833000,-161.68513202,9.746e-05,2]
[422600929,1779139833000,-279.33781746,8.139e-05,2]
[422600932,1779139833000,-321.94867097,0.00010139,2]
[422600928,1779139833000,-236.72696395,6.139e-05,2]
[422600933,1779139833000,-173.70128651,0.00010624,2]
[422600927,1779139833000,-5000.0,5.982e-05,2]
[422600934,1779139833000,-220.0,0.00010959,3]
[422600939,1779139833000,-185.0,0.00011782,2]
[422600938,1779139833000,-379.825,0.00011782,2]
[422600936,1779139833000,-2202.0,0.00011782,2]
[422600937,1779139833000,-1413.0,0.00011782,2]
[422600940,1779139833000,-443.0,0.00011782,2]
[422600942,1779139833000,-200.0,0.00012603,3]
[422600941,1779139833000,-364.55952448,0.00012139,2]
[422600943,1779139833000,-1178.91491685,0.000129,2]
[422600935,1779139833000,-300.0,0.00011781,2]
[422600944,1779139834000,-2567.83429981,0.000129,2]
[422601008,1779139838000,-2900.88132077,0.00012996,2]
[422601004,1779139838000,-945.5113884,0.000129,2]
[422601002,1779139838000,-1719.60186195,0.000129,2]
[422600998,1779139838000,-380.40007511,0.000129,2]
[422601000,1779139838000,-2949.15356078,0.000129,2]
[422601006,1779139838000,-3233.19387129,0.000129,2]
[422601010,1779139838000,-5000.0,0.00013094,15]
[422601012,1779139838000,-500.0,0.00013095,2]
[422601024,1779139838000,-500.0,0.00013095,2]
[422601026,1779139838000,-500.0,0.00013095,2]
[422601014,1779139838000,-210.75133646,0.00013095,2]
[422601028,1779139838000,-10342.82838849,0.00013096,2]
[422601016,1779139838000,-500.0,0.00013095,2]
[422601022,1779139838000,-500.0,0.00013095,2]
[422601018,1779139838000,-500.0,0.00013095,2]
[422601020,1779139838000,-500.0,0.00013095,2]
[422601328,1779139841000,-4865.12127409,0.00013096,2]
[422601389,1779139844000,-3874.1307084,0.00013824,2]
[422601391,1779139844000,-1767.4140011,0.00013824,2]
[422601386,1779139844000,-616.31816554,0.00013699,7]
[422601380,1779139844000,-330.455,0.00013452,2]
[422601387,1779139844000,-1000.0,0.00013699,2]
[422601382,1779139844000,-1000.0,0.00013699,2]
[422601388,1779139844000,-295.31478928,0.0001372,2]
[422601381,1779139844000,-180.02700405,0.00013699,2]
[422601384,1779139844000,-205.43938851,0.00013699,7]
[422601383,1779139844000,-198.384017,0.00013699,2]
[422601390,1779139844000,-400.20325986,0.00013824,2]
[422601378,1779139844000,-515153.92774517,0.00013096,2]
[422601379,1779139844000,-151.0,0.00013168,2]
[422601377,1779139844000,-1212.76955924,0.00013096,2]
[422601385,1779139844000,-410.87877702,0.00013699,7]
[422601393,1779139844000,-537.6845,0.00013998,5]
[422601392,1779139844000,-152.0,0.00013914,7]
[422601401,1779139844000,-775.895903,0.00014,2]
[422601408,1779139844000,-7360.0,0.00014,2]
[422601395,1779139844000,-151.51,0.00014,2]
[422601407,1779139844000,-7360.0,0.00014,2]
[422601409,1779139844000,-7360.0,0.00014,2]
[422601411,1779139844000,-55837.79184774,0.00014,14]
[422601406,1779139844000,-7360.0,0.00014,2]
[422601403,1779139844000,-775.895903,0.00014,2]
[422601404,1779139844000,-184.410227,0.00014,2]
[422601410,1779139844000,-20000.0,0.00014,30]
[422601405,1779139844000,-193.507687,0.00014,2]
[422601396,1779139844000,-500.0,0.00014,2]
[422601397,1779139844000,-500.0,0.00014,2]
[422601400,1779139844000,-775.895903,0.00014,2]
[422601398,1779139844000,-2710.74463458,0.00014,2]
[422601399,1779139844000,-151.0,0.00014,2]
[422601394,1779139844000,-179618.60350306,0.00014,2]
[422601402,1779139844000,-775.895903,0.00014,2]
[422601416,1779139847000,-776.39520267,0.00012771,2]
[422601415,1779139847000,-1519.49463734,0.00012771,2]
[422601420,1779140798000,-3152.10891276,5.112e-05,2]
[422601423,1779140986000,3098.12141086,5e-05,2]
[422601424,1779141001000,279.61339346,5e-05,2]
[422601604,1779141034000,-232.62161045,5.087e-05,2]
[422601609,1779141034000,-159.496813,7.645e-05,2]
[422601606,1779141034000,-159.496813,5.991e-05,2]
[422601612,1779141034000,-159.496813,9.298e-05,2]
[422601607,1779141034000,-159.496813,6.818e-05,2]
[422601610,1779141034000,-159.496813,8.471e-05,2]
[422601611,1779141034000,-316.36539021,9.087e-05,2]
[422601605,1779141034000,-159.496813,5.164e-05,2]
[422601613,1779141034000,-159.496813,0.00010125,2]
[422601615,1779141034000,-1151.17262448,0.00010754,2]
[422601614,1779141034000,-614.45675069,0.00010654,2]
[422601608,1779141034000,-274.49350033,7.086e-05,2]
[422601618,1779141034000,-187.0,0.00010959,3]
[422601619,1779141034000,-300.0,0.00011053,2]
[422601620,1779141034000,-300.0,0.00011053,2]
[422601617,1779141034000,-1972.03246158,0.00010954,2]
[422601621,1779141034000,-2224.60437205,0.00011054,2]
[422601623,1779141034000,-1132.76866758,0.00011154,2]
[422601625,1779141034000,-150.82392036,0.00011154,2]
[422601624,1779141034000,-1036.69568593,0.00011154,2]
[422601616,1779141034000,-1687.88849826,0.00010854,2]
[422601622,1779141034000,-358.23728009,0.00011087,2]
[422601627,1779141034000,-1415.37854773,0.00011354,2]
[422601626,1779141034000,-2668.54408629,0.00011254,2]
[422601642,1779141038000,-3016.79989871,0.00011454,2]
[422601640,1779141038000,-836.73170697,0.00011354,2]
[422601641,1779141038000,-509.20999113,0.00011354,2]
[422601643,1779141038000,-1465.95998613,0.00011554,2]
[422601685,1779141039000,-1000.0,0.00013699,2]
[422601678,1779141039000,-1057.3170159,0.0001341,2]
[422601679,1779141039000,-5655.84561568,0.00013411,2]
[422601684,1779141039000,-195.5303861,0.00013699,2]
[422601681,1779141039000,-189.74118105,0.00013472,2]
[422601677,1779141039000,-3713.2446079,0.0001341,2]
[422601680,1779141039000,-599.60298507,0.00013464,2]
[422601682,1779141039000,-648.21150328,0.00013519,2]
[422601683,1779141039000,-180.0306052,0.00013699,2]
[422601686,1779141039000,-1000.0,0.00013699,2]
[422601688,1779141039000,-5915.502116,0.00013776,2]
[422601687,1779141039000,-196.87652619,0.0001372,2]
[422601690,1779141039000,-5000.0,0.00013999,15]
[422601692,1779141039000,-500.0,0.00013999,2]
[422601689,1779141039000,-456.5585623,0.00013982,2]
[422601694,1779141039000,-492.76450373,0.00013999,2]
[422601697,1779141039000,-1384.63565683,0.00014,2]
[422601696,1779141039000,-500.0,0.00013999,2]
[422601695,1779141039000,-500.0,0.00013999,2]
[422601693,1779141039000,-500.0,0.00013999,2]
[422601674,1779141039000,-557.5788265,0.00013354,2]
[422601699,1779141039000,-500.0,0.00014,2]
[422601698,1779141039000,-500.0,0.00014,2]
[422601700,1779141039000,-244476.83259723,0.00014,14]
[422601701,1779141039000,-159.1965021,0.00014,2]
[422601702,1779141039000,-151.51,0.000141,2]
[422601704,1779141039000,-275.26,0.000141,2]
[422601703,1779141039000,-151.51,0.000141,2]
[422601691,1779141039000,-500.0,0.00013999,2]
[422601673,1779141039000,-537.6845,0.00013299,2]
[422601664,1779141039000,-170.0,0.00012603,3]
[422601672,1779141039000,-456.4461666,0.00013271,2]
[422601705,1779141039000,-5969.51300872,0.00014142,2]
[422601644,1779141039000,-1832.07613349,0.00011554,2]
[422601647,1779141039000,-3713.31152356,0.00011854,2]
[422601646,1779141039000,-3692.69242298,0.00011754,2]
[422601645,1779141039000,-3365.05571113,0.00011654,2]
[422601648,1779141039000,-4061.56733598,0.00011954,2]
[422601650,1779141039000,-300.0,0.00012145,2]
[422601649,1779141039000,-4167.12884177,0.00012054,2]
[422601652,1779141039000,-647.0,0.00012212,2]
[422601651,1779141039000,-4401.17604355,0.00012154,2]
[422601653,1779141039000,-2203.0,0.00012212,2]
[422601654,1779141039000,-151.585,0.00012212,2]
[422601655,1779141039000,-166.213,0.00012212,2]
[422601675,1779141039000,-453.191,0.0001337,2]
[422601657,1779141039000,-2953.62350812,0.00012254,2]
[422601658,1779141039000,-1563.1799885,0.00012254,2]
[422601659,1779141039000,-4714.84343659,0.00012354,2]
[422601661,1779141039000,-934.51578574,0.00012454,2]
[422601663,1779141039000,-5028.51082962,0.00012554,2]
[422601662,1779141039000,-4761.95265019,0.00012547,2]
[422601660,1779141039000,-3931.96236572,0.00012454,2]
[422601665,1779141039000,-161.68513202,0.00012653,2]
[422601667,1779141039000,-5342.17822265,0.00012679,2]
[422601668,1779141039000,-5565.82746115,0.00013045,2]
[422601666,1779141039000,-5216.15280631,0.00012654,2]
[422601671,1779141039000,-325.8907786,0.00013271,2]
[422601669,1779141039000,-400.10916997,0.00013087,2]
[422601670,1779141039000,-151.0,0.00013271,2]
[422601656,1779141039000,-300.0,0.00012233,2]
[422601706,1779141039000,-500.0,0.000142,2]
[422601676,1779141039000,-578.20924308,0.00013409,2]
[422601708,1779141039000,-500.0,0.00014246,2]
[422601740,1779141039000,-500.0,0.0001452,2]
[422601743,1779141039000,-1968.71451612,0.0001454,2]
[422601744,1779141039000,-1968.71451612,0.00014567,2]
[422601742,1779141039000,-2577.82,0.00014521,2]
[422601748,1779141039000,-1968.71451612,0.00014621,2]
[422601747,1779141039000,-1968.71451612,0.00014608,2]
[422601745,1779141039000,-1968.71451612,0.00014594,2]
[422601746,1779141039000,-151.51,0.000146,2]
[422601750,1779141039000,-200.0,0.00014688,2]
[422601749,1779141039000,-1968.71451612,0.00014659,2]
[422601752,1779141039000,-151.51,0.000147,2]
[422601751,1779141039000,-1968.71451612,0.00014694,2]
[422601754,1779141039000,-827.70038663,0.0001474,2]
[422601755,1779141039000,-500.0,0.00014794,2]
[422601753,1779141039000,-151.51,0.000147,2]
[422601757,1779141039000,-2577.82,0.00014795,2]
[422601756,1779141039000,-500.0,0.00014794,2]
[422601758,1779141039000,-151.51,0.000148,2]
[422601759,1779141039000,-154.27641658,0.00014836,21]
[422601762,1779141039000,-1968.71451612,0.00014894,2]
[422601761,1779141039000,-6283.18040175,0.00014873,2]
[422601763,1779141039000,-1968.71451612,0.000149,2]
[422601765,1779141039000,-2459.5,0.000149,2]
[422601766,1779141039000,-567.3362,0.000149,2]
[422601764,1779141039000,-602.55623193,0.000149,2]
[422601767,1779141039000,-894.1113,0.000149,2]
[422601768,1779141039000,-151.51,0.000149,2]
[422601770,1779141039000,-460.4252298,0.000149,2]
[422601707,1779141039000,-151.51,0.000142,2]
[422601741,1779141039000,-500.0,0.0001452,2]
[422601739,1779141039000,-514.99291632,0.0001452,2]
[422601760,1779141039000,-1968.71451612,0.00014849,2]
[422601736,1779141039000,-151.51,0.000145,2]
[422601738,1779141039000,-6265.17677085,0.00014508,2]
[422601711,1779141039000,-171.0,0.00014247,3]
[422601710,1779141039000,-500.0,0.00014246,2]
[422601714,1779141039000,-151.51,0.000143,2]
[422601713,1779141039000,-170.0,0.00014252,2]
[422601712,1779141039000,-2577.82,0.00014247,2]
[422601715,1779141039000,-151.51,0.000143,2]
[422601717,1779141039000,-160.0,0.00014316,2]
[422601721,1779141039000,-190.205018,0.00014328,2]
[422601720,1779141039000,-209.82537,0.00014316,2]
[422601719,1779141039000,-275.486616,0.00014316,2]
[422601718,1779141039000,-217.743308,0.00014316,2]
[422601716,1779141039000,-200.0,0.00014308,2]
[422601722,1779141039000,-160.0,0.00014328,2]
[422601709,1779141039000,-500.0,0.00014246,2]
[422601725,1779141039000,-160.0,0.00014388,2]
[422601769,1779141039000,-151.51,0.000149,2]